[Event "Bangabandhu Premier Div League 2023-24"]
[Site "Dhaka"]
[Date "2024.02.11"]
[Round "11.12"]
[White "Ter-Sahakyan, Samvel"]
[Black "Nayem, Haque"]
[Result "1-0"]
[ECO "E01"]
[WhiteElo "2649"]
[BlackElo "2092"]
[Annotator "TA"]
[PlyCount "51"]
[EventDate "2024.02.01"]
[EventCountry "BAN"]
[SourceTitle "playchess.com"]
[Source "ChessBase"]
[SourceQuality "1"]
[TimeControl "40/5400+30:1800+30"]

{[%evp 12,51,39,40,41,35,46,45,65,54,79,75,84,68,103,109,196,198,202,202,222,231,295,272,301,272,277,275,344,291,413,286,476,468,464,459,674,667,662,649,679,536]} 1. d4 {[%emt 0:00:30]} d5 {[%emt 0:00:30]} 2. c4 {[%emt 0:00:30]} c6 {[%emt 0:00:30]} 3. Nf3 {[%emt 0:00:30]} Nf6 {[%emt 0:00:30]} 4. Qc2 {[%emt 0:00:30]} e6 {[%emt 0:00:30]} 5. g3 {[%emt 0:00:30]} Bb4+ {[%emt 0:00:30]} 6. Nbd2 {[%emt 0:00:30]} Nbd7 {[%emt 0:00:30]} 7. Bg2 {[%emt 0:00:30]} O-O {[%emt 1:31:00]} 8. O-O a5 {[%emt 0:00:00]} 9. e4 {[%emt 0:00:00]} Bxd2 {[%emt 0:00:00] White is slightly better.} 10. Nxd2 {[%emt 0:00:00]} dxe4 {[%emt 0:00:00]} 11. Nxe4 {[%emt 0:00:53]} Nxe4 {[%emt 0:00:00]} 12. Qxe4 {[%emt 0:00:20]} c5 {[%emt 0:00:00]} 13. Be3 {[%emt 0:01:43][%cal Bc1e3,Be3d2,Bd2c3][%mdl 32] White is much more active.} a4 {[%emt 0:00:00]} (13... Qc7 $16 {was called for.}) 14. dxc5 $18 {[%emt 0:01:06]} Qa5 {[%emt 0:00:00]} 15. Qd4 {[%emt 0:01:45]} Nb8 {[%emt 0:00:00] Black is weak on the dark squares} 16. Bd2 {[%emt 0:03:33]} e5 {[%emt 0:00:00]} 17. Qd6 {[%emt 0:01:54]} (17. Qxe5 $2 {is the wrong capture.} Qxd2 18. Rad1 Qa5 $19) 17... Qa6 {[%emt 0:00:00]} 18. Qxa6 {[%emt 0:00:28]} Rxa6 {[%emt 0:00:00]} 19. b4 {[%emt 0:00:18]} a3 {[%emt 0:00:00]} 20. Bc3 {[%emt 0:01:08]} f6 {[%emt 0:00:00]} (20... Ra4 $142 21. Rfd1 (21. Bxe5 Nc6 $18) 21... Nc6) 21. Bd5+ {[%emt 0:00:11] This pair of bishops is nice.} Kh8 $2 {[%emt 0:00:00] [#]} (21... Be6 {was necessary.} 22. Rad1 (22. Bxb7 Bxc4 23. Bxa6 Bxa6 $18) 22... Bxd5) 22. f4 {[%emt 0:00:13] White is clearly winning.} exf4 {[%emt 0:00:00]} 23. Rxf4 {[%emt 0:00:05]} (23. b5 Re6 24. Bxe6 (24. Rxf4 Re2 $18) 24... Bxe6 25. Rxf4 Bf7) 23... Re8 {[%emt 0:00:00]} (23... Ra4 $142 24. Rb1 h6) 24. Re1 {[%emt 0:00:24]} Rxe1+ {[%emt 0:00:00]} 25. Bxe1 {[%emt 0:00:09]} Nd7 {[%emt 0:00:00]} 26. Bc3 {[%emt 0:00:07] White took control after the opening.   Weighted Error Value: White=0.11 (very precise) /Black=0.49.  Mistake:       	---       	Black=4      Inaccurate:     	White=1     	Black=1      OK:         	White=9     	Black=4} 1-0